Cogmind - Beta 16 --- EXPLORER MODE // 2025.12.02 @ 18:14:34 Player: K.K.Y. Result: Self-destructed Performance ------------- Evolutions (5) 2500 Regions Visited (6) 1200 Robots Destroyed (109) 545 Value Destroyed (4792) 4792 Prototype IDs (16) 320 Alien Tech Used (0) 0 Bonus (2000) 2000 TOTAL SCORE: 11357 Bonus ------- Delivered SUBCON Basin 2000 Cogmind --------- Core Integrity 268/1000 Matter 300/300 Energy 84/100 System Corruption 4% Temperature Cool (9) Movement Core (50) Location -5/Factory Parts ------- > --- POWER (2) -------- (None) > --- PROPULSION (5) --- (None) > --- UTILITY (8) ------ Advanced Cooling System Improved Signal Interpreter Improved Hacking Suite > --- WEAPON (3) ------- (None) > --- INVENTORY (5) ---- Cargo Storage Unit Light Humpback Long-range Proton Cannon Peak State ------------ > --- POWER ------------ Improved Deuterium Engine Micro Fission Core > --- PROPULSION ------- Spiked Treads Spiked Treads Spiked Treads Heavy Treads > --- UTILITY ---------- Improved Cryofiber Web Humpback Machine Analyzer Advanced Sensor Array Improved Signal Interpreter Improved Shield Generator Improved Hacking Suite > --- WEAPON ----------- Heavy Gatling Laser KE Penetrator Powered Hammer > --- INVENTORY -------- Advanced Cooling System Huge Storage Unit Cargo Storage Unit Light Humpback Deep Structural Scanner Advanced Terrain Scan Processor Improved Transmission Jammer Improved Light Armor Plating EM Shield Improved Shield Generator Authchip [R/Combat] Authchip [R/Combat] Authchip [Propulsion] Improved Corruption Screen System Restoration Module Advanced System Restoration Module Tesla Rifle Tesla Rifle Tesla Rifle Wave Gun Long-range Proton Cannon Heavy Plasma Cannon Heavy Plasma Cannon Coil Gun Heavy Machine Gun KE Penetrator Advanced Assault Cannon Gauss Cannon Improved Datajack Improved Remote Datajack Improved Remote Datajack Plasma Cutter Multitool [Rating: 86] Favorites ----------- Power Nuclear Core Engine Ion Engine Power Core Nuclear Core Propulsion Improved Treads Treads Improved Treads Hover Unit Antigrav System Utility Tech Extrapolator Device Sensor Array Storage Humpback Processor Tech Extrapolator Hackware Improved Hacking Suite Protection Improved Medium Armor Plating Weapon Powered Hammer Energy Gun Heavy Gatling Laser Energy Cannon Neutron Cannon Ballistic Gun Heavy Battle Rifle Ballistic Cannon Slug Cannon Special Weapon Plasma Cutter Impact Weapon Powered Hammer Piercing Weapon Makeshift Spear Build | -11 -10 -10 -10 -7 -7 -5 ------- Run | Yrd Mat Min Sub Rec Scr Fac Slots Evolved 11 | . 1 . . . . 10 Power 1 | . . . . . . 1 Propulsion 3 | . . . . . . 3 Utility 6 | . 1 . . . . 5 Weapon 1 | . . . . . . 1 Parts Attached 73 | 6 7 2 9 4 5 40 Power 9 | 1 1 . . 1 . 6 Engine 4 | 1 1 . . . . 2 Core 5 | . . . . 1 . 4 Reactor . | . . . . . . . Propulsion 17 | 2 4 . 2 . 3 6 Treads 15 | 2 4 . 2 . 3 4 Leg . | . . . . . . . Wheel . | . . . . . . . Hover 2 | . . . . . . 2 Flight . | . . . . . . . Utility 27 | 1 1 1 2 1 2 19 Device 12 | . 1 . 1 . 1 9 Storage 4 | 1 . 1 . . 1 1 Processor 6 | . . . 1 1 . 4 Hackware 1 | . . . . . . 1 Protection 4 | . . . . . . 4 Artifact . | . . . . . . . Weapon 20 | 2 1 1 5 2 . 9 Energy Gun 3 | . . . . . . 3 Energy Cannon 1 | . . . . . . 1 Ballistic Gun 10 | 2 . 1 3 . . 4 Ballistic Cannon 1 | . . . . . . 1 Launcher . | . . . . . . . Special Weapon 2 | . 1 . 1 . . . Impact Weapon 2 | . . . . 2 . . Slashing Weapon . | . . . . . . . Piercing Weapon 1 | . . . 1 . . . Special Melee Weapon . | . . . . . . . Unidentified Prototypes 3 | . . . . . . 3 Parts Lost 47 | . . 1 1 . . 45 Power 5 | . . . . . . 5 Propulsion 9 | . . . 1 . . 8 Utility 16 | . . . . . . 16 Weapon 17 | . . 1 . . . 16 Highest Loss Streak 16 | . . 1 1 . . 16 To Critical Strikes 2 | . . . . . . 2 Average Backups 22 | 3 7 10 16 12 26 29 Power . | . . . . . . . Propulsion 1 | 1 1 2 1 . 1 . Utility 11 | 1 6 6 8 8 13 13 Weapon 6 | . . . 4 1 8 10 Tool/Special . | . . . . . . . Unused Backups 44 | . 1 1 10 . 7 25 Power 2 | . . . 1 . 1 . Propulsion 3 | . . 1 . . 2 . Utility 14 | . 1 . 6 . . 7 Weapon 23 | . . . 3 . 4 16 Tool/Special 2 | . . . . . . 2 Average Slot Usage (%) 86 | . 74 86 92 100 89 72 Engine 4 | . 12 12 12 5 . 2 Core 6 | . . . . 6 12 3 Treads 21 | . 24 25 18 25 25 15 Device 8 | . 2 12 24 2 . 11 Storage 9 | . 12 12 12 12 11 4 Processor 10 | . . . . 21 14 10 Ballistic Gun 11 | . 20 12 15 12 12 5 Impact Weapon 6 | . . . . 10 12 3 Piercing Weapon 1 | . . . 8 1 . . Peak Build Rating 86 | 6 11 13 38 38 33 86 Average Rating 36 | 2 7 11 18 30 31 71 On Entrance 18 | . 6 11 11 38 30 33 Avg Prop Armor Cover (%) 11 | . . . . . . 11 Naked Turns . | . . . . . . . Heaviest Build 238 | 17 19 90 92 94 214 238 Greatest Support 130 | 40 46 46 52 46 46 130 Greatest Overweight (x) 73 | 3 . 1 3 2 5 73 Average Overweight (x) 2 | 1 . . 1 1 3 2 Largest Inventory Capacity 35 | 10 10 25 25 25 35 35 Average Capacity 28 | 9 10 22 25 25 30 34 Most Carried 35 | 5 10 14 25 25 35 35 Average Carried 25 | 3 7 11 20 18 28 31 Final Capacity 35 | 10 10 25 25 25 35 5 Final Carried 34 | 2 10 13 25 19 34 5 Class Distribution -------------------- 48% | Hacker-Mutant 39% | Hauler-Mutant 5% | Hauler-Assassin 3% | Hauler-Skirmisher Dominant Class ---------------- Hacker-Mutant | -10/Materials Hacker-Mutant | -10/Mines Hacker-Mutant | -10/Subcaves Hacker-Mutant | -7/Recycling Hauler-Mutant | -7/Scraptown Hauler-Mutant | -5/Factory Resources | -11 -10 -10 -10 -7 -7 -5 ----------- Run | Yrd Mat Min Sub Rec Scr Fac Matter Collected 3345 | 220 271 200 360 40 268 1986 Remotely . | . . . . . . . Salvage Created 4614 | . 414 307 432 415 . 3046 Parts 218 | . 25 17 30 10 . 136 Haulers Intercepted 2 | . 2 . . . . . Recyclers Shooed 1 | . . . . . . 1 Parts Field Recycled . | . . . . . . . Retrieved Matter . | . . . . . . . Parts Self-Destructed . | . . . . . . . Prevented . | . . . . . . . Parts Restored . | . . . . . . . Kills | -11 -10 -10 -10 -7 -7 -5 ------- Run | Yrd Mat Min Sub Rec Scr Fac Combat Hostiles Destroyed 94 | . 10 6 8 6 . 64 Melee 9 | . . . 5 3 . 1 Guns 58 | . 10 6 3 . . 39 Cannons 21 | . . . . . . 21 AOE 1 | . . . . . . 1 Classes Destroyed 15 | . 5 2 2 2 . 4 Tunneler 3 | . . 3 . . . . Hauler 2 | . 2 . . . . . Recycler 3 | . . 1 . 1 . 1 Mechanic 2 | . 1 . . . . 1 Watcher 5 | . 2 . . . . 3 Swarmer 22 | . 7 4 1 . . 10 Grunt 21 | . 3 2 . . . 16 Brawler 2 | . . . . . . 2 Duelist 1 | . . . . . . 1 Protector 1 | . . . . 1 . . Sentry 11 | . . . . 5 . 6 Hunter 7 | . . . . . . 7 Programmer 22 | . . . . . . 22 Cobbler 2 | . . . 2 . . . Subdweller 7 | . . . 7 . . . Best Kill Streak 4 | . 4 2 1 3 . 4 Combat Bots Only 4 | . 4 2 1 3 . 4 Max Kills in Single Turn 2 | . 2 1 1 1 . 2 Gunslinging 1 | . 1 . . . . . Exploded 1 | . . . . . . 1 Melee 1 | . . . 1 1 . 1 Uniques/NPCs Destroyed . | . . . . . . . Combat | -11 -10 -10 -10 -7 -7 -5 -------- Run | Yrd Mat Min Sub Rec Scr Fac Hostile Shots Fired 882 | . 30 36 40 135 . 641 Missed 231 | . 5 11 13 42 . 160 Hits 651 | . 25 25 27 93 . 481 Melee 12 | . . . . . . 12 Projectile 639 | . 25 25 27 93 . 469 AOE 4 | . . . . . . 4 Critical Strikes 32 | . . 1 1 . . 30 Part Disruptions 1 | . . . . . . 1 Damage Taken 6693 | . 160 160 410 404 . 5559 Core 958 | . 35 18 75 98 . 732 Absorbed by Shields 377 | . . . . . . 377 Redirected to Shielding 64 | . . . . . . 64 Ignored by Resistances 4249 | . 109 107 223 295 . 3515 Regen/Repaired (Parts) 802 | . . . . . . 802 Core Remaining (%) 54 | 100 . . . . 9 . Volleys Fired 323 | . 39 35 47 . . 202 Largest 3 | . 2 2 2 . . 3 Hottest 216 | . 40 40 51 . . 216 Shots Fired 603 | . 77 40 80 . . 406 Gun 529 | . 77 35 78 . . 339 Cannon 67 | . . . . . . 67 Launcher . | . . . . . . . Special 7 | . . 5 2 . . . Kinetic 456 | . 77 35 78 . . 266 Thermal 147 | . . 5 2 . . 140 Explosive . | . . . . . . . Electromagnetic . | . . . . . . . Robot Hit Streak 49 | . 30 23 29 . . 49 Robot Miss Streak 4 | . 2 2 1 . . 4 Penetration Max 1 | . . . . . . 1 Secondary Targets 11 | . 4 . . . . 7 Max Gunslinging Chain 1 | . 1 . . . . 1 Shots Hit Robots 496 | . 61 33 45 18 . 339 Core Hits 224 | . 22 14 15 5 . 168 Critical Kills 15 | . . . . 2 . 13 Critical Parts Destroyed 23 | . 2 . . 1 . 20 Critical Strikes 46 | . 2 . 4 6 . 34 Burn 1 | . . . . . . 1 Destroy 34 | . 2 . . . . 32 Smash 5 | . . . . 4 . 1 Impale 6 | . . . 4 2 . . Melee Attacks 66 | . . . 46 18 . 2 Impact 13 | . . . . 11 . 2 Slashing . | . . . . . . . Piercing 53 | . . . 46 7 . . Sneak Attacks 5 | . . . 1 4 . . Combat Hostiles . | . . . . . . . Follow-up Attacks . | . . . . . . . Damage Inflicted 12454 | . 753 444 936 707 . 9614 Guns 8943 | . 753 400 310 . . 7480 Cannons 1929 | . . . . . . 1929 Explosions 110 | . . . . . . 110 Melee 1407 | . . . 626 707 . 74 Ramming 21 | . . . . . . 21 Kinetic 6470 | . 753 400 310 . . 5007 Thermal 4556 | . . 44 . . . 4512 Explosive . | . . . . . . . Electromagnetic . | . . . . . . . Impact 568 | . . . . 494 . 74 Slashing . | . . . . . . . Piercing 839 | . . . 626 213 . . Highest Corruption 9 | . . . . . . 9 Average Corruption 3 | . . . . . . 3 Corruption Purged 14 | . . . . . . 14 Corruption Blocked 15 | . . . . . . 15 Effects 54 | . . . . . . 54 Message Errors 11 | . . . . . . 11 Matter Fused 18 | . . . . . . 18 Heat Flow Errors 11 | . . . . . . 11 Energy Discharges 3 | . . . . . . 3 Data Loss (minor) 2 | . . . . . . 2 Data Loss (major) 2 | . . . . . . 2 Misfires 3 | . . . . . . 3 Alerts 3 | . . . . . . 3 Weapon Failures 1 | . . . . . . 1 Overload Shots . | . . . . . . . Overflow Damage 70 | . . . . 31 . 39 Projectiles 28 | . . . . . . 28 Explosions . | . . . . . . . Melee 42 | . . . . 31 . 11 Knockbacks 12 | . . . . 1 . 11 Impact 1 | . . . . 1 . . Kinetic 11 | . . . . . . 11 Secondary . | . . . . . . . Self-Inflicted Damage . | . . . . . . . Shots . | . . . . . . . Rammed 2 | . . . . . . 2 Targets Rammed 2 | . . . . . . 2 Kicked . | . . . . . . . Crushed . | . . . . . . . Highest Temperature 617 | . 5 18 151 . . 617 Average Temperature 117 | . 5 11 91 . . 120 Received Heat Transfer 1619 | . 78 84 354 210 . 893 Effects 1 | . . . . . . 1 Matter Decay 1 | . . . . . . 1 Siege Activations . | . . . . . . . Martial Activations . | . . . . . . . Shielding Activations . | . . . . . . . Robots Disrupted . | . . . . . . . Combat Hostiles . | . . . . . . . Robots Corrupted 3 | . . . . 3 . . Combat Hostiles 3 | . . . . 3 . . Parts Fried 3 | . . . . 1 . 2 Impact Corruptions 6 | . . . . 4 . 2 Robots Melted 2 | . . . . . . 2 Combat Hostiles 2 | . . . . . . 2 Parts Melted 19 | . . . . . . 19 Heat Transferred 6047 | . . 148 . . . 5899 Parts Sabotaged . | . . . . . . . Parts Stolen . | . . . . . . . Parts Stripped . | . . . . . . . Power Chain Reactions 1 | . . . . . . 1 Alert | -11 -10 -10 -10 -7 -7 -5 ------- Run | Yrd Mat Min Sub Rec Scr Fac Maximum Alert Level . | . . . . . . . Low Security (%) 100 | 100 100 100 . 100 . 100 Level 1 . | . . . . . . . Level 2 . | . . . . . . . Level 3 . | . . . . . . . Level 4 . | . . . . . . . Level 5 . | . . . . . . . High Security . | . . . . . . . Max Security . | . . . . . . . Peak Influence 118 | . 118 50 . 30 . 93 Initial 7 | . . . . 7 . . Average 6 | . 14 4 . . . 8 Influence Increases 2507 | . 394 170 20 113 . 1810 Destroy 0b10 Robot/C 1720 | . 200 120 20 100 . 1280 Destroy 0b10 Robot/NC 80 | . 25 20 . 10 . 25 Destroy Leader 384 | . 48 30 . . . 306 Successful Hack 65 | . 16 . . 3 . 46 Disable Machine 32 | . . . . . . 32 Destroy Structure 46 | . . . . . . 46 Lose Combat Pursuer 180 | . 105 . . . . 75 Influence Decreases 2487 | . 394 170 . 133 . 1790 Entered New Map 13 | . . . . 13 . . Time Decay 2314 | . 394 160 . 120 . 1640 Lost Part 160 | . . 10 . . . 150 Squads Dispatched 25 | . . . . . . 25 Investigation 3 | . . . . . . 3 Extermination 11 | . . . . . . 11 Reinforcement 4 | . . . . . . 4 Assault 1 | . . . . . . 1 Garrison 6 | . . . . . . 6 Intercept . | . . . . . . . Searches Triggered . | . . . . . . . Construction Impeded . | . . . . . . . Haulers Reinforced 2 | . . . . . . 2 Active Scanning Responses . | . . . . . . . Cargo Convoy Interrupts . | . . . . . . . Stealth | -11 -10 -10 -10 -7 -7 -5 --------- Run | Yrd Mat Min Sub Rec Scr Fac Distress Signals 2 | . 1 . . . . 1 Communications Jammed . | . . . . . . . Distress Signals . | . . . . . . . Times Spotted 132 | . 20 7 13 5 . 87 Peak Tracking Total 6 | . 3 2 6 3 . 5 Tactical Retreats 10 | . 7 . . . . 3 Traps | -11 -10 -10 -10 -7 -7 -5 ------- Run | Yrd Mat Min Sub Rec Scr Fac Traps Triggered 7 | . 4 . 1 . . 2 Indirectly . | . . . . . . . Trap Hack Attempts . | . . . . . . . Triggered . | . . . . . . . Disarmed . | . . . . . . . Reprogrammed . | . . . . . . . Reused . | . . . . . . . Traps Extracted . | . . . . . . . Installed . | . . . . . . . Triggered . | . . . . . . . Machines | -11 -10 -10 -10 -7 -7 -5 ---------- Run | Yrd Mat Min Sub Rec Scr Fac Machines Disabled 8 | . . . . . . 8 Max in Single Turn 1 | . . . . . . 1 Garrison Access 1 | . . . . . . 1 Machines Repaired . | . . . . . . . Machines Dismantled . | . . . . . . . Machines Sabotaged . | . . . . . . . Overloaded Fab Kills . | . . . . . . . Hacking | -11 -10 -10 -10 -7 -7 -5 --------- Run | Yrd Mat Min Sub Rec Scr Fac Machines Accessed 30 | . 5 . 4 8 . 13 Terminals 11 | . 5 . . 2 . 4 Fabricators 4 | . . . . . . 4 Repair Stations 2 | . . . . . . 2 Recycling Units 6 | . . . . 6 . . Scanalyzers 2 | . . . . . . 2 Garrison Access 1 | . . . . . . 1 Total Hacks 60 | . 9 . 8 17 . 26 Successful 37 | . 5 . 8 7 . 17 Failed 23 | . 4 . . 10 . 9 Catastrophic 3 | . . . . 1 . 2 Database Lockouts . | . . . . . . . Manual 8 | . . . . . . 8 Terminals 21 | . 9 . . 4 . 8 Fabricators 7 | . . . . . . 7 Repair Stations 4 | . . . . . . 4 Recycling Units 13 | . . . . 13 . . Scanalyzers 4 | . . . . . . 4 Garrison Access 3 | . . . . . . 3 Terminal Hacks 15 | . 5 . 8 1 . 1 Record 5 | . . . 5 . . . Part Schematic 1 | . . . . . . 1 Robot Analysis 1 | . 1 . . . . . Open Door 1 | . . . 1 . . . Zone Layout 5 | . 4 . . 1 . . Proto ID Catalog 1 | . . . 1 . . . Release Object 1 | . . . 1 . . . Fabricator Hacks 4 | . . . . . . 4 Network Status 2 | . . . . . . 2 Load Schematic 1 | . . . . . . 1 Build 1 | . . . . . . 1 Repair Station Hacks 4 | . . . . . . 4 Scan Component 2 | . . . . . . 2 Repair 2 | . . . . . . 2 Recycling Unit Hacks 6 | . . . . 6 . . Retrieve Components 6 | . . . . 6 . . Scanalyzer 3 | . . . . . . 3 Insert Component 1 | . . . . . . 1 Analyze 1 | . . . . . . 1 Retrieve Study 1 | . . . . . . 1 Garrison Access Hacks . | . . . . . . . Unauthorized Hacks 5 | . . . . . . 5 Terminals 3 | . . . . . . 3 Botnet 3 | . . . . . . 3 Fabricators 2 | . . . . . . 2 Fabnet 2 | . . . . . . 2 Repair Stations . | . . . . . . . Recycling Units . | . . . . . . . Scanalyzers . | . . . . . . . Garrison Access . | . . . . . . . Data Cores Recovered . | . . . . . . . Used . | . . . . . . . Hacking Detections 18 | . 4 . . 5 . 9 Full Trace Events 5 | . . . . 2 . 3 Feedback Events . | . . . . . . . Feedback Blocked . | . . . . . . . Robot Schematics Acquired . | . . . . . . . Robots Built . | . . . . . . . Authchips . | . . . . . . . Time . | . . . . . . . Total Robot Build Rating . | . . . . . . . Part Schematics Acquired 25 | . . . . 6 7 12 Parts Built 1 | . . . . . . 1 Authchips . | . . . . . . . Time 84 | . . . . . . 84 Total Part Build Rating 4 | . . . . . . 4 Part Studies Acquired 1 | . . . . . . 1 Parts Repaired 2 | . . . . . . 2 Time 54 | . . . . . . 54 Parts Recycled . | . . . . . . . Recycled Matter . | . . . . . . . Retrieved Matter . | . . . . . . . Retrieved Components 18 | . . . . 18 . . Parts Scanalyzed 1 | . . . . . . 1 Part Schematics Acquired 1 | . . . . . . 1 Parts Damaged . | . . . . . . . Bothacking | -11 -10 -10 -10 -7 -7 -5 ------------ Run | Yrd Mat Min Sub Rec Scr Fac Used RIF Installer . | . . . . . . . Robots Hacked . | . . . . . . . Non-combat . | . . . . . . . Combat . | . . . . . . . Robot Hacks Applied . | . . . . . . . Relay Couplers Released 1 | . . . . . . 1 Machine Destruction 1 | . . . . . . 1 Fabnet Peak Effective % . | . . . . . . . Robots Rewired 2 | . . . . 2 . . Allies Hacked . | . . . . . . . Hacks Repelled . | . . . . . . . Allies | -11 -10 -10 -10 -7 -7 -5 -------- Run | Yrd Mat Min Sub Rec Scr Fac Total Allies 2 | . . . . 2 . . Largest Group 2 | . . . . 2 2 2 Highest-Rated Group 20 | . . . . 20 20 20 Highest-Rated Ally 12 | . . . . 12 12 12 Total Orders 1 | . . . . . 1 . DROP 1 | . . . . . 1 . Ally Attacks 5 | . . . . . . 5 Total Damage 50 | . . . . . . 50 Kills . | . . . . . . . Allies Corrupted . | . . . . . . . Allies Melted . | . . . . . . . Intel | -11 -10 -10 -10 -7 -7 -5 ------- Run | Yrd Mat Min Sub Rec Scr Fac Active Infowar (turns) 17733 | . 301 1013 5737 2830 1961 5891 Sensors 13521 | . 301 1013 5737 687 . 5783 Machine Analysis 10123 | . . . 259 2830 1961 5073 Robot Analysis Total 1 | . 1 . . . . . Derelict Logs Recovered 9 | . . 2 3 . 4 . Drone Launches . | . . . . . . . Drone Recoveries . | . . . . . . . Exploration | -11 -10 -10 -10 -7 -7 -5 ------------- Run | Yrd Mat Min Sub Rec Scr Fac Turns Passed 28919 | 135 1307 1013 5737 2830 10758 7139 Spaces Moved 8029 | 89 708 402 1806 944 2420 1660 Core 83 | 61 . . . . . 22 Treads 7912 | 28 708 402 1806 944 2420 1604 Legs . | . . . . . . . Wheels . | . . . . . . . Hover 34 | . . . . . . 34 Flight . | . . . . . . . Fastest Speed 50 | 50 160 160 240 240 160 100 Average Speed 328 | 138 160 222 301 288 439 325 Slowest Speed 3700 | 200 160 240 400 320 660 3700 Overloaded Moves . | . . . . . . . Propulsion Burnouts . | . . . . . . . Robots Hopped . | . . . . . . . Potential Cave-ins . | . . . . . . . Cave-ins Triggered . | . . . . . . . Exploration Rate (%) 66 | 5 97 84 87 99 54 40 Regions Visited 6 Branch Regions 4 Pre-discovered Areas 2 | . . . 2 . . . Known Exits Taken 6 | 1 1 1 1 1 1 . Unknown Exits Taken . | . . . . . . . Scrap Searched 18 | . . 1 12 . 5 . Spaces Dug 5 | . . . 5 . . . Terrain Destroyed 26 | . . . 5 . . 21 Melee 5 | . . . 5 . . . Projectile 8 | . . . . . . 8 AOE 13 | . . . . . . 13 Terrain Rammed . | . . . . . . . Walls Destroyed . | . . . . . . . Machines Disabled . | . . . . . . . Actions | -11 -10 -10 -10 -7 -7 -5 --------- Run | Yrd Mat Min Sub Rec Scr Fac Total 9951 | 100 808 478 1976 1023 2544 3022 Wait 1202 | . 33 32 32 38 63 1004 Move 8023 | 88 707 401 1805 943 2419 1660 Hop . | . . . . . . . Pick Up 170 | 6 15 4 16 11 42 76 Fast Attach 12 | 2 1 1 . 1 2 5 Attach 50 | 4 4 1 5 1 1 34 Detach 11 | . . 2 2 1 1 5 Swap 18 | . 3 . 5 2 3 5 Drop 70 | . 6 2 18 4 13 27 Fire 323 | . 39 35 47 . . 202 Melee 66 | . . . 46 18 . 2 Ram . | . . . . . . . Kick . | . . . . . . . Crush 2 | . . . . . . 2 Escape Stasis . | . . . . . . . Rewire 4 | . . . . 4 . . Trap . | . . . . . . . Miscellaneous . | . . . . . . . Route ------- -11/Scrapyard -10/Materials (discovered 4 exits: *Mat x3 / *Min) -10/Mines (discovered 3 exits: *Mat x2 / *Sub) -10/Subcaves (discovered 3 exits: *Mat x2 / *Rec) -7/Recycling (discovered 2 exits: *Fac / *Scr) -7/Scraptown -5/Factory (discovered 4 exits: *Fac x3 / *Upp) History --------- Turn | Location | Event 3 | -11/Scrapyard | Identified exit to Materials 3 | -11/Scrapyard | Discovered exit to Materials (range 16) 136 | -11/Scrapyard | Entered Materials 136 | -10/Materials | Evolved 1 slot: Utility x1 194 | -10/Materials | Identified exit to Materials 194 | -10/Materials | Discovered exit to Materials (range 15) 308 | -10/Materials | Build established: Hacker-Mutant 503 | -10/Materials | Discovered exit to Materials (range 10) 669 | -10/Materials | Identified exit to Mines 669 | -10/Materials | Discovered exit to Mines (range 14) 696 | -10/Materials | Discovered exit to Materials (range 3) 1443 | -10/Materials | Entered Mines 1462 | -10/Mines | Learned Materials interactive machine intel 1603 | -10/Mines | Learned Materials non-interactive machine intel 1628 | -10/Mines | Discovered exit to Materials (range 7) 2057 | -10/Mines | Joined a pair of Derelicts in attacking an 0b10 outpost 2357 | -10/Mines | Discovered exit to Materials (range 12) 2439 | -10/Mines | Identified exit to Subcaves 2439 | -10/Mines | Discovered exit to Subcaves (range 6) 2456 | -10/Mines | Entered Subcaves 2466 | -10/Subcaves | Shifting Twisted Machinery released Sub. Machine Gun 2688 | -10/Subcaves | Visited Clippyterm 2695 | -10/Subcaves | Learned location of Extension (-4) 2726 | -10/Subcaves | Learned 4 Materials zone layouts 3296 | -10/Subcaves | Visited 4L-MR0's lab 4037 | -10/Subcaves | Shifting Twisted Machinery released Sub. Monowheel 4068 | -10/Subcaves | Shifting Twisted Machinery released Sub. Laser 4645 | -10/Subcaves | Shifting Twisted Machinery released Hvy. Riot Gun 4651 | -10/Subcaves | Shifting Twisted Machinery released Sub. Shrapnel Launcher 4724 | -10/Subcaves | Identified exit to Recycling 4767 | -10/Subcaves | Identified exit to Materials 4767 | -10/Subcaves | Discovered exit to Materials (range 8) 4890 | -10/Subcaves | Learned location of Mines (-10) 4956 | -10/Subcaves | Disturbed a concealed Subdweller 5479 | -10/Subcaves | Discovered exit to Materials (range 8) 6070 | -10/Subcaves | Core integrity fell below 50% 6552 | -10/Subcaves | Shifting Twisted Machinery released Sub. Monowheel 6999 | -10/Subcaves | A swath of the cavern ceiling suddenly collapsed 7936 | -10/Subcaves | Found SUBCON Basin 8193 | -10/Subcaves | Entered Recycling 8655 | -7/Recycling | Identified exit to Factory 8655 | -7/Recycling | Discovered exit to Factory (range 5) 8793 | -7/Recycling | Scanned before Scraplab entrance 8837 | -7/Recycling | Entered Scraplab 9056 | -7/Recycling | Tech Extrapolator generated special schematic: Deep Structural Scanner 9919 | -7/Recycling | Tech Extrapolator generated special schematic: Machine Rigger 9939 | -7/Recycling | Core integrity fell below 20% 11010 | -7/Recycling | Identified exit to Scraptown 11010 | -7/Recycling | Discovered exit to Scraptown (range 2) 11023 | -7/Recycling | Entered Scraptown 11023 | -7/Scraptown | Accompanied by 2 allies 11661 | -7/Scraptown | Heard Great Nut preacher, LISTEN AND RECITE! 11699 | -7/Scraptown | Discovered exit to Factory (range 13) 11805 | -7/Scraptown | Visited Symbiants 11824 | -7/Scraptown | Visited Comm Corps 11885 | -7/Scraptown | Visited Assassins FH 11917 | -7/Scraptown | Visited Spacefarers 12003 | -7/Scraptown | Visited IN-MT5's Study 12138 | -7/Scraptown | Visited Cyclists 12199 | -7/Scraptown | Visited Science Testing Area 14309 | -7/Scraptown | Build established: Hauler-Mutant 18213 | -7/Scraptown | Scanned Subdweller tech in exchange for log data 18226 | -7/Scraptown | Learned 8 Factory zone layouts 18232 | -7/Scraptown | Learned Factory garrison access intel 18239 | -7/Scraptown | Learned Factory stockpile data 21781 | -7/Scraptown | Entered Factory 21781 | -5/Factory | Accompanied by 2 allies 21781 | -5/Factory | Evolved 10 slots: Power x1, Propulsion x3, Utility x5, Weapon x1 21782 | -5/Factory | Identified exit to Upper Caves 21782 | -5/Factory | Identified exit to Factory 21784 | -5/Factory | Loaded intel: 3 garrison access locations 23122 | -5/Factory | Fabricated Deep Structural Scanner (x1) 24821 | -5/Factory | Build established: Hauler-Assassin 25756 | -5/Factory | Repaired Hvy. Treads 26304 | -5/Factory | Build established: Hacker-Assassin 26365 | -5/Factory | Repaired Humpback 26730 | -5/Factory | Build established: Hauler-Skirmisher 26763 | -5/Factory | Discovered exit to Factory (range 13) 27115 | -5/Factory | Build established: Hauler-Tank 27198 | -5/Factory | Garrison activated, responded to threat 27303 | -5/Factory | Lost 4 parts (2p1u1w) 27530 | -5/Factory | Build established: Hauler-Mutant 27949 | -5/Factory | Discovered exit to Factory (range 16) 28112 | -5/Factory | Core integrity fell below 50% 28159 | -5/Factory | Lost 3 parts (1p1n1u) 28435 | -5/Factory | Build established: Hauler-Skirmisher 28845 | -5/Factory | Lost 16 parts (8u8w) 28920 | -5/Factory | Self-destructed Last Messages --------------- 28894_ K-01 Serf collects debris. 28894_ U-05 Engineer lays Concrete. 28897_ Penetrated by Slug. 28897_ Critical hit (Destroy). 28897_ Arm. Medium Treads destroyed. 28897_ K-01 Serf suffers critical hit (Destroy). 28897_ K-01 Serf destroyed. 28897_ Neutron Cannon destroyed. 28898_ U-05 Engineer lays Concrete. 28901_ Penetrated by Slug. 28901_ U-05 Engineer lays Concrete. 28903_ H-66 Slayer suffers critical hit (Destroy). 28903_ Targeting Computer melted. 28903_ H-66 Slayer destroyed. 28903_ U-05 Engineer lays Concrete. 28905_ Acquired 4 matter. 28905_ U-05 Engineer lays Concrete. 28919_ Enh. Force Rifle destroyed. 28920_ U-05 Engineer lays Concrete. Map ----- +----------------------------------------------------+ | ?????????????????????????????????????????????????? | | ?????????????????????????????????????????????????? | | ?????????????????????????????????????????????????? | | ?????????????????????????????????????????????????? | | ?????????????????????????????????????????????????? | | ?????????????????????????????????????????????????? | | ?????????????????????????????????????????????????? | | ?????????????????????????????????????????????????? | | ?????????????????????????????????????????????????? | | ?????????????????????????????????????????????????? | | ???????????????????????##????????????????????????? | | ????# # #?????????????????????? | | ????# # #?????????????????????? | | ????# + "#?????????????????????? | | ????# # g [ ""#?????????????????????? | | ????# ! # [%= "#?????????????????????? | | ????# # g m ! T#?????????????????????? | | ????# # ###??????? ???????????? | | ????# # % ; #?????? ???????????? | | ????# # ; ##???? ""???????????? | | ????########## ; ???? ""???????????? | | ?????# + u u%;;###? """ ?????????? | | ?????# # % =t # ????????? | | ?????# "T" # ????????? | | ?????######### ! ???????? | | ???########### ]@] = ????????? | | ??? # !]!=[ ###???????????????? | | ??? # ####;*%!%#####?????????????????? | | ??? # #??# ##!#!#????????????????????? | | ??? ### ##??##?#t###????????????????????? | | ???""" """ #?# #??????# #??????????????????????? | | ???""" """ #?# #??????# #??????????????????????? | | ???""" """ #?# #???####+#########??????????????? | | ??? "" "" #?# ##### % ^ +??????????????? | | ??? "" "" #?# + """" #??????????????? | | ??? #?# ##### """" ????????????????? | | ???????????????# #???# ^""""?????????????????? | | ???????????????# #???# """"?????????????????? | | ??#####+########+##### """" """"?????????????????? | | ?? # ## """" """"?????????????????? | | ?? # """ [[[## """" """"?????????????????? | | ?? # """ [[[## ^ ??????????????????? | | ??? # """ [[## ! ^ ??????????????????? | | ?"" """ # ## ^ ? ??????????????????? | | ?"" """ # ## ???? ??????????????????? | | """ """ ###+############??+#???????????????????? | | ????????????????????? | | ?"" """ ????????????????????? | | """ """ ????????????????????? | | """ """ ?????????????????????? | +----------------------------------------------------+ Best States ------------- Heat Dissipation 71 Energy Generation 28 Energy Capacity 340 Matter Stores 300 Matter Capacity 300 Sight Range 16 Robot Scan Range 16 Terrain Scan Density 10 Additional Mass Support 6 Base Temperature (-) 150 Corruption Block 15 Armor Coverage 450 Resistance: KI 35 Resistance: TH 35 Resistance: EX 35 Resistance: EM 35 Resistance: I 35 Resistance: S 35 Resistance: P 35 Utility Shielding 66 Evasion (%) 50 Recoil Reduction 5 Offensive Hacking 32 Authchip Count 3 Item Schematics ----------------- Humpback | -7/Recycling | Extrapolated Deep Structural Scanner | -7/Recycling | Extrapolated Ripper | -7/Recycling | Extrapolated Beamcaster | -7/Recycling | Extrapolated Machine Rigger | -7/Recycling | Extrapolated Spk. Treads | -7/Recycling | Extrapolated Mak. Shrapnel Gun | -7/Scraptown | Extrapolated Mak. Sensor Array | -7/Scraptown | Extrapolated Mak. Leg | -7/Scraptown | Extrapolated Mak. Coolant Network | -7/Scraptown | Extrapolated Mak. Light Armor Plating | -7/Scraptown | Extrapolated Mak. Axe | -7/Scraptown | Extrapolated Mak. Spear | -7/Scraptown | Extrapolated Spk. Medium Treads | -5/Factory | Extrapolated Lgt. Humpback | -5/Factory | Extrapolated Enh. Flamer | -5/Factory | Extrapolated Cargo Storage Unit | -5/Factory | Scanalyzed Spk. Heavy Treads | -5/Factory | Extrapolated Mak. Power Source | -5/Factory | Extrapolated Mak. Transmission Jammer | -5/Factory | Extrapolated Mak. Core Shielding | -5/Factory | Extrapolated Hvy. Beamcaster | -5/Factory | Extrapolated Mak. Hacking Suite | -5/Factory | Extrapolated Tesla Rifle | -5/Factory | Hacked Multitool | -5/Factory | Extrapolated Robot Schematics ------------------ None Fabricated ------------ Deep Structural Scanner | x1 | -5/Factory Repaired ---------- Hvy. Treads | 19% | -5/Factory Humpback | 1% | -5/Factory Studied --------- Hvy. Treads | -5/Factory | Hacked Alien Tech Used ----------------- None Achievements -------------- None Challenges ------------ None Game ------ Seed SlugTripodFalx Manual? 0 Play Time 01:12:53 Cumulative 157.5 hours Start 2025.12.02 @ 17:03:04 End 2025.12.02 @ 18:14:34 Sessions 1 Manual Loads 0 Difficulty Explorer Special Mode None Game No. 203 Rogue 0 Adventurer 0 Explorer 203 Win Type - Total 0 Types 0/0/0/0/0/0/0/0/0/0 Lore% 70 Gallery% 66 Achievement% 52 Wizard Run 0 Options --------- Layout 1 ASCII 0 Keyboard 0 Movement Mouse Keybinds 0 Fullscreen 1 Font 24/Smallcaps Map View 50x35 Zoom Use 0% Tactical HUD 1 Map Filters NONE Filters NONE Steam 1 RUN: 54d4c060-b7b0-4547-b58d-7e1f39e58427